[Event "Late-Titled-Tuesday-Blitz-February-13-2024"]
[Site "Chess.com"]
[Date "2024.02.13"]
[Round "11"]
[White "Fjal"]
[Black "dosto07"]
[Result "0-1"]
[WhiteElo "2240"]
[BlackElo "2494"]
[TimeControl "180+1"]
[EndTime "16:04:51 PST"]
[Termination "dosto07 won by resignation"]

1. Nf3 {[%clk 0:02:54.4]} 1... Nf6 {[%clk 0:02:59.6]} 2. g3 {[%clk 0:02:53.2]}
2... d5 {[%clk 0:02:58.6]} 3. Bg2 {[%clk 0:02:54.1]} 3... Bf5 {[%clk 0:02:58.1]}
4. O-O {[%clk 0:02:45.6]} 4... e6 {[%clk 0:02:58.2]} 5. d3 {[%clk 0:02:39.7]}
5... h6 {[%clk 0:02:58.3]} 6. c4 {[%clk 0:02:32.6]} 6... c6 {[%clk 0:02:58.1]}
7. cxd5 {[%clk 0:02:33.5]} 7... cxd5 {[%clk 0:02:57.6]} 8. Qb3 {[%clk 0:02:33]}
8... Qb6 {[%clk 0:02:46.7]} 9. Be3 {[%clk 0:02:32.4]} 9... Qxb3 {[%clk
0:02:45.3]} 10. axb3 {[%clk 0:02:33.3]} 10... Nc6 {[%clk 0:02:44.8]} 11. Nc3
{[%clk 0:02:26.2]} 11... Be7 {[%clk 0:02:39]} 12. Nb5 {[%clk 0:02:07.3]} 12...
Kd7 {[%clk 0:02:38]} 13. Nxa7 {[%clk 0:02:05.9]} 13... Nxa7 {[%clk 0:02:37.8]}
14. Bxa7 {[%clk 0:02:05.2]} 14... Bd6 {[%clk 0:02:36.4]} 15. Ra4 {[%clk
0:02:04]} 15... Rhc8 {[%clk 0:02:33.7]} 16. Nd4 {[%clk 0:01:54.4]} 16... Bg6
{[%clk 0:02:32.6]} 17. Rfa1 {[%clk 0:01:53.8]} 17... Be5 {[%clk 0:02:27.1]} 18.
h3 {[%clk 0:01:23.9]} 18... Rxa7 {[%clk 0:02:24]} 19. Rxa7 {[%clk 0:01:22.7]}
19... Bxd4 {[%clk 0:02:24.4]} 20. Rxb7+ {[%clk 0:01:23.1]} 20... Rc7 {[%clk
0:02:22.5]} 21. Rxc7+ {[%clk 0:01:18.2]} 21... Kxc7 {[%clk 0:02:22.8]} 22. Rc1+
{[%clk 0:01:16.8]} 22... Kd7 {[%clk 0:02:20.8]} 23. Rc2 {[%clk 0:01:16.4]} 23...
Ne8 {[%clk 0:02:16.2]} 24. Kf1 {[%clk 0:01:02.8]} 24... Nd6 {[%clk 0:02:15.6]}
25. Ke1 {[%clk 0:00:57.4]} 25... Nb5 {[%clk 0:02:13.2]} 26. e3 {[%clk
0:00:57.9]} 26... Bf6 {[%clk 0:02:04.2]} 27. Kd2 {[%clk 0:00:57.9]} 27... h5
{[%clk 0:02:02.2]} 28. Bf1 {[%clk 0:00:54.6]} 28... Be7 {[%clk 0:02:01.4]} 29.
d4 {[%clk 0:00:55]} 29... Bb4+ {[%clk 0:01:58.9]} 30. Kc1 {[%clk 0:00:54.2]}
30... Nd6 {[%clk 0:01:54]} 31. Rc3 {[%clk 0:00:50]} 31... Bxc3 {[%clk
0:01:52.9]} 32. bxc3 {[%clk 0:00:50.9]} 32... Ne4 {[%clk 0:01:53.3]} 33. c4
{[%clk 0:00:47.7]} 33... Nxf2 {[%clk 0:01:51.4]} 34. c5 {[%clk 0:00:47.6]} 34...
Bd3 {[%clk 0:01:46.6]} 35. Bg2 {[%clk 0:00:39.9]} 35... Be4 {[%clk 0:01:46.8]}
36. Bf1 {[%clk 0:00:39.6]} 36... Nd3+ {[%clk 0:01:40]} 37. Kd2 {[%clk
0:00:39.5]} 37... Nb4 {[%clk 0:01:40.5]} 38. Kc3 {[%clk 0:00:38.5]} 38... Nc6
{[%clk 0:01:34.4]} 39. b4 {[%clk 0:00:37.4]} 39... g5 {[%clk 0:01:33.9]} 40. b5
{[%clk 0:00:37.6]} 40... Nd8 {[%clk 0:01:32.1]} 41. h4 {[%clk 0:00:33.6]} 41...
f6 {[%clk 0:01:31.5]} 42. Be2 {[%clk 0:00:31]} 42... g4 {[%clk 0:01:24.5]} 43.
Bd1 {[%clk 0:00:31.5]} 43... Kc7 {[%clk 0:01:23.7]} 44. Ba4 {[%clk 0:00:25.4]}
44... e5 {[%clk 0:01:22]} 45. b6+ {[%clk 0:00:23.2]} 45... Kb7 {[%clk
0:01:20.4]} 46. Be8 {[%clk 0:00:23.7]} 46... exd4+ {[%clk 0:01:08.4]} 47. exd4
{[%clk 0:00:24.6]} 47... Ne6 {[%clk 0:01:08.1]} 48. Bxh5 {[%clk 0:00:24.4]}
48... f5 {[%clk 0:01:04.7]} 49. Bf7 {[%clk 0:00:24.5]} 49... Nd8 {[%clk
0:01:02.9]} 50. Bg6 {[%clk 0:00:22.5]} 50... f4 {[%clk 0:01:01.7]} 51. Bxe4
{[%clk 0:00:16.4]} 51... dxe4 {[%clk 0:01:01.6]} 52. Kc2 {[%clk 0:00:11.7]}
52... fxg3 {[%clk 0:01:00.9]} 53. h5 {[%clk 0:00:12.1]} 53... g2 {[%clk
0:01:00.9]} 54. h6 {[%clk 0:00:13]} 54... g1=Q {[%clk 0:01:00.8]} 0-1

[Event "Late-Titled-Tuesday-Blitz-February-13-2024"]
[Site "Chess.com"]
[Date "2024.02.13"]
[Round "11"]
[White "Heinza9"]
[Black "yuriydovzik"]
[Result "1-0"]
[WhiteElo "2290"]
[BlackElo "2115"]
[TimeControl "180+1"]
[EndTime "16:04:51 PST"]
[Termination "Heinza9 won on time"]

1. e4 {[%clk 0:03:00.9]} 1... c6 {[%clk 0:02:57.4]} 2. d4 {[%clk 0:03:00.2]}
2... Na6 {[%clk 0:02:57.1]} 3. c4 {[%clk 0:02:59.5]} 3... g6 {[%clk 0:02:51.9]}
4. d5 {[%clk 0:02:58.2]} 4... Bg7 {[%clk 0:02:50.3]} 5. Nc3 {[%clk 0:02:58.3]}
5... d6 {[%clk 0:02:36.3]} 6. Nf3 {[%clk 0:02:57.6]} 6... Nf6 {[%clk 0:02:32.8]}
7. Bd3 {[%clk 0:02:54.2]} 7... Nc5 {[%clk 0:02:29.3]} 8. Bc2 {[%clk 0:02:54.3]}
8... a5 {[%clk 0:02:26.8]} 9. h3 {[%clk 0:02:52.4]} 9... O-O {[%clk 0:02:25.8]}
10. O-O {[%clk 0:02:52.4]} 10... h6 {[%clk 0:02:17.3]} 11. Be3 {[%clk
0:02:52.1]} 11... cxd5 {[%clk 0:02:03.5]} 12. exd5 {[%clk 0:02:43.6]} 12... b6
{[%clk 0:01:59.1]} 13. Re1 {[%clk 0:02:42.5]} 13... Ba6 {[%clk 0:01:56.7]} 14.
b3 {[%clk 0:02:36.5]} 14... a4 {[%clk 0:01:46.7]} 15. Qd2 {[%clk 0:02:36]} 15...
Qc7 {[%clk 0:01:32.2]} 16. Bxh6 {[%clk 0:02:29.1]} 16... axb3 {[%clk 0:01:26.8]}
17. axb3 {[%clk 0:02:28.4]} 17... b5 {[%clk 0:01:15.1]} 18. Bxg7 {[%clk
0:02:08]} 18... Kxg7 {[%clk 0:01:14.2]} 19. cxb5 {[%clk 0:02:06.6]} 19... Bb7
{[%clk 0:01:10.8]} 20. b4 {[%clk 0:02:04.6]} 20... Rxa1 {[%clk 0:01:05.3]} 21.
Rxa1 {[%clk 0:02:03.8]} 21... Ncd7 {[%clk 0:01:05.3]} 22. Bb3 {[%clk 0:02:03]}
22... Rc8 {[%clk 0:00:58.8]} 23. Ne2 {[%clk 0:01:53.1]} 23... Ne5 {[%clk
0:00:47.8]} 24. Nxe5 {[%clk 0:01:49.7]} 24... dxe5 {[%clk 0:00:46.6]} 25. Rc1
{[%clk 0:01:49.4]} 25... Qb6 {[%clk 0:00:37.9]} 26. Rxc8 {[%clk 0:01:49.1]}
26... Bxc8 {[%clk 0:00:37.3]} 27. Nc3 {[%clk 0:01:44.5]} 27... Bf5 {[%clk
0:00:31.8]} 28. Qe3 {[%clk 0:01:43.9]} 28... Qd6 {[%clk 0:00:27.4]} 29. Qc5
{[%clk 0:01:41.8]} 29... Qd8 {[%clk 0:00:17.7]} 30. b6 {[%clk 0:01:26.7]} 30...
Nd7 {[%clk 0:00:16.7]} 31. Qc7 {[%clk 0:01:26.9]} 31... Qa8 {[%clk 0:00:11.8]}
32. b7 {[%clk 0:01:23.1]} 32... Qa1+ {[%clk 0:00:11]} 33. Kh2 {[%clk 0:01:23.4]}
33... Qc1 {[%clk 0:00:11.3]} 34. Nb5 {[%clk 0:00:54.8]} 34... Qf4+ {[%clk
0:00:09]} 35. Kg1 {[%clk 0:00:53.3]} 35... Qxb4 {[%clk 0:00:06.8]} 36. b8=Q
{[%clk 0:00:43.2]} 36... Nxb8 {[%clk 0:00:05.8]} 37. Qxe5+ {[%clk 0:00:43.2]}
37... f6 {[%clk 0:00:05.3]} 38. Qxb8 {[%clk 0:00:43]} 38... Qxb3 {[%clk
0:00:02.6]} 39. Qb7 {[%clk 0:00:38.2]} 1-0

[Event "Late-Titled-Tuesday-Blitz-February-13-2024"]
[Site "Chess.com"]
[Date "2024.02.13"]
[Round "11"]
[White "sotochess"]
[Black "SouS007"]
[Result "1-0"]
[WhiteElo "2589"]
[BlackElo "2503"]
[TimeControl "180+1"]
[EndTime "16:04:54 PST"]
[Termination "sotochess won by checkmate"]

1. e4 {[%clk 0:03:00]} 1... e6 {[%clk 0:02:59.7]} 2. Qe2 {[%clk 0:02:59.3]} 2...
b6 {[%clk 0:02:48.1]} 3. Nf3 {[%clk 0:02:58.1]} 3... Bb7 {[%clk 0:02:43.8]} 4.
g3 {[%clk 0:02:57.1]} 4... Nf6 {[%clk 0:02:37]} 5. d3 {[%clk 0:02:56.7]} 5... d5
{[%clk 0:02:34.3]} 6. Nbd2 {[%clk 0:02:45.9]} 6... dxe4 {[%clk 0:02:32]} 7. dxe4
{[%clk 0:02:45.5]} 7... Be7 {[%clk 0:02:31.7]} 8. Bg2 {[%clk 0:02:45]} 8... O-O
{[%clk 0:02:30.7]} 9. O-O {[%clk 0:02:44.8]} 9... c5 {[%clk 0:02:25.9]} 10. Rd1
{[%clk 0:02:41.5]} 10... Nc6 {[%clk 0:02:23.1]} 11. e5 {[%clk 0:02:40.2]} 11...
Nd5 {[%clk 0:02:12.8]} 12. Ne4 {[%clk 0:02:36.3]} 12... Qb8 {[%clk 0:01:43]} 13.
c4 {[%clk 0:02:35]} 13... Ba6 {[%clk 0:01:42.3]} 14. Bg5 {[%clk 0:01:48.3]}
14... Bxg5 {[%clk 0:01:38.1]} 15. Nexg5 {[%clk 0:01:44.9]} 15... h6 {[%clk
0:01:34.6]} 16. Qc2 {[%clk 0:01:27.6]} 16... hxg5 {[%clk 0:01:31.2]} 17. Nxg5
{[%clk 0:01:23.2]} 17... g6 {[%clk 0:01:23]} 18. cxd5 {[%clk 0:01:20.6]} 18...
Nb4 {[%clk 0:01:14.8]} 19. Qe4 {[%clk 0:01:15.7]} 19... Qb7 {[%clk 0:00:13.5]}
20. Qh4 {[%clk 0:01:06.4]} 20... f6 {[%clk 0:00:13.8]} 21. exf6 {[%clk
0:01:05.8]} 21... exd5 {[%clk 0:00:13.7]} 22. Rxd5 {[%clk 0:01:01.6]} 22... Rxf6
{[%clk 0:00:02.8]} 23. Rd7 {[%clk 0:00:51.9]} 23... Qxd7 {[%clk 0:00:02.2]} 24.
Bxa8 {[%clk 0:00:50.5]} 24... Rf8 {[%clk 0:00:02.7]} 25. Be4 {[%clk 0:00:47]}
25... Bb7 {[%clk 0:00:03.1]} 26. Bxg6 {[%clk 0:00:44.8]} 26... Qg7 {[%clk
0:00:02.4]} 27. Bh7+ {[%clk 0:00:41.6]} 27... Kh8 {[%clk 0:00:03]} 28. Be4+
{[%clk 0:00:39.2]} 28... Kg8 {[%clk 0:00:03.6]} 29. Bh7+ {[%clk 0:00:34.4]}
29... Kh8 {[%clk 0:00:03.6]} 30. Re1 {[%clk 0:00:34.5]} 30... Nd5 {[%clk
0:00:03.1]} 31. Be4+ {[%clk 0:00:31.4]} 31... Kg8 {[%clk 0:00:03.1]} 32. Ne6
{[%clk 0:00:30.3]} 32... Qf6 {[%clk 0:00:03.5]} 33. Qh7# {[%clk 0:00:26.5]} 1-0

[Event "Late-Titled-Tuesday-Blitz-February-13-2024"]
[Site "Chess.com"]
[Date "2024.02.13"]
[Round "11"]
[White "DeGrootteZ"]
[Black "chegueps"]
[Result "1/2-1/2"]
[WhiteElo "2837"]
[BlackElo "2685"]
[TimeControl "180+1"]
[EndTime "16:04:55 PST"]
[Termination "Game drawn by repetition"]

1. c4 {[%clk 0:03:00.9]} 1... Nf6 {[%clk 0:02:54.9]} 2. Nc3 {[%clk 0:03:00.3]}
2... g6 {[%clk 0:02:55]} 3. e4 {[%clk 0:02:59.5]} 3... d6 {[%clk 0:02:55.9]} 4.
d4 {[%clk 0:03:00.1]} 4... Bg7 {[%clk 0:02:56.5]} 5. Nge2 {[%clk 0:03:00.4]}
5... O-O {[%clk 0:02:57.2]} 6. Ng3 {[%clk 0:03:01.1]} 6... c6 {[%clk 0:02:44.5]}
7. Be2 {[%clk 0:02:57.7]} 7... a6 {[%clk 0:02:41]} 8. h4 {[%clk 0:02:55.6]} 8...
b5 {[%clk 0:02:35.4]} 9. h5 {[%clk 0:02:53.2]} 9... bxc4 {[%clk 0:02:30.6]} 10.
hxg6 {[%clk 0:02:53.2]} 10... hxg6 {[%clk 0:02:30.6]} 11. Bg5 {[%clk 0:02:36.9]}
11... Nh7 {[%clk 0:02:09]} 12. Be3 {[%clk 0:02:26.8]} 12... e5 {[%clk 0:01:24]}
13. dxe5 {[%clk 0:02:20.1]} 13... Bxe5 {[%clk 0:01:21.2]} 14. f4 {[%clk
0:02:12.1]} 14... Bg7 {[%clk 0:01:13]} 15. Qd2 {[%clk 0:02:06.5]} 15... d5
{[%clk 0:01:08.4]} 16. exd5 {[%clk 0:01:56.2]} 16... cxd5 {[%clk 0:01:06.1]} 17.
Nxd5 {[%clk 0:01:52.2]} 17... Nf6 {[%clk 0:01:01.1]} 18. Nxf6+ {[%clk
0:01:30.9]} 18... Qxf6 {[%clk 0:01:00.8]} 19. Bf3 {[%clk 0:01:30.9]} 19... Nc6
{[%clk 0:00:57.8]} 20. Rc1 {[%clk 0:01:11.5]} 20... Rb8 {[%clk 0:00:57.1]} 21.
Rxc4 {[%clk 0:00:54.3]} 21... Rxb2 {[%clk 0:00:39.2]} 22. Rxc6 {[%clk
0:00:50.2]} 22... Qe7 {[%clk 0:00:39.3]} 23. Qd3 {[%clk 0:00:39.8]} 23... Re8
{[%clk 0:00:35.9]} 24. O-O {[%clk 0:00:35.9]} 24... Bb7 {[%clk 0:00:33.5]} 25.
Bc5 {[%clk 0:00:31.1]} 25... Qh4 {[%clk 0:00:25.9]} 26. Rc7 {[%clk 0:00:16.6]}
26... Qxg3 {[%clk 0:00:23.2]} 27. Bf2 {[%clk 0:00:14.9]} 27... Bd4 {[%clk
0:00:07.4]} 28. Qxd4 {[%clk 0:00:11.2]} 28... Bxf3 {[%clk 0:00:08]} 29. Bxg3
{[%clk 0:00:11.5]} 29... Rxg2+ {[%clk 0:00:08.9]} 30. Kh1 {[%clk 0:00:11.7]}
30... Rf2+ {[%clk 0:00:09.8]} 31. Kg1 {[%clk 0:00:10.6]} 31... Rg2+ {[%clk
0:00:10.7]} 32. Kh1 {[%clk 0:00:11.1]} 32... Rf2+ {[%clk 0:00:08.5]} 33. Kg1
{[%clk 0:00:11.6]} 33... Rg2+ {[%clk 0:00:09.1]} 1/2-1/2

[Event "Late-Titled-Tuesday-Blitz-February-13-2024"]
[Site "Chess.com"]
[Date "2024.02.13"]
[Round "11"]
[White "VladimirKramnik"]
[Black "dropstoneDP"]
[Result "0-1"]
[WhiteElo "2948"]
[BlackElo "3063"]
[TimeControl "180+1"]
[EndTime "16:05:01 PST"]
[Termination "dropstoneDP won on time"]

1. c4 {[%clk 0:03:00.9]} 1... e5 {[%clk 0:02:56.9]} 2. d3 {[%clk 0:03:00]} 2...
Nf6 {[%clk 0:02:55.8]} 3. Nf3 {[%clk 0:03:00]} 3... Nc6 {[%clk 0:02:56.3]} 4. a3
{[%clk 0:03:00.2]} 4... d5 {[%clk 0:02:56.1]} 5. cxd5 {[%clk 0:03:00.4]} 5...
Nxd5 {[%clk 0:02:57]} 6. Qc2 {[%clk 0:03:00.6]} 6... Bg4 {[%clk 0:02:53.2]} 7.
Nbd2 {[%clk 0:02:54.3]} 7... Qd7 {[%clk 0:02:44.6]} 8. e3 {[%clk 0:02:53.1]}
8... O-O-O {[%clk 0:02:42.7]} 9. h3 {[%clk 0:02:49.6]} 9... Bh5 {[%clk
0:02:40.3]} 10. b4 {[%clk 0:02:45.8]} 10... a6 {[%clk 0:02:37.4]} 11. Bb2 {[%clk
0:02:41.6]} 11... f6 {[%clk 0:02:35.6]} 12. Rc1 {[%clk 0:02:29]} 12... Kb8
{[%clk 0:02:34]} 13. Be2 {[%clk 0:02:27.3]} 13... Bxb4 {[%clk 0:02:32.7]} 14.
axb4 {[%clk 0:02:14.1]} 14... Ndxb4 {[%clk 0:02:33.6]} 15. Qb1 {[%clk
0:01:55.3]} 15... Nxd3+ {[%clk 0:02:31.7]} 16. Bxd3 {[%clk 0:01:54.8]} 16...
Qxd3 {[%clk 0:02:32.6]} 17. Qxd3 {[%clk 0:01:48.4]} 17... Rxd3 {[%clk
0:02:33.5]} 18. Ne4 {[%clk 0:01:43.4]} 18... Rb3 {[%clk 0:02:22.5]} 19. Ba1
{[%clk 0:01:43.1]} 19... Nb4 {[%clk 0:02:17]} 20. O-O {[%clk 0:01:28.5]} 20...
Nd3 {[%clk 0:02:12.2]} 21. Rb1 {[%clk 0:01:16.1]} 21... Rxb1 {[%clk 0:02:10.8]}
22. Rxb1 {[%clk 0:01:16.7]} 22... Bg6 {[%clk 0:02:11.1]} 23. Nfd2 {[%clk
0:01:13.6]} 23... Rd8 {[%clk 0:02:09]} 24. Rb3 {[%clk 0:00:57.8]} 24... b6
{[%clk 0:02:00.4]} 25. g4 {[%clk 0:00:50.7]} 25... a5 {[%clk 0:01:49.6]} 26. Kg2
{[%clk 0:00:49]} 26... Nb4 {[%clk 0:01:47.6]} 27. Bc3 {[%clk 0:00:47.1]} 27...
c5 {[%clk 0:01:46.9]} 28. g5 {[%clk 0:00:38]} 28... fxg5 {[%clk 0:01:07.6]} 29.
Nxg5 {[%clk 0:00:30.8]} 29... Kb7 {[%clk 0:01:02]} 30. Ndf3 {[%clk 0:00:30.7]}
30... a4 {[%clk 0:00:53.5]} 31. Ra3 {[%clk 0:00:26.3]} 31... b5 {[%clk
0:00:53.3]} 32. Nxe5 {[%clk 0:00:24.3]} 32... Bc2 {[%clk 0:00:48.8]} 33. Ne6
{[%clk 0:00:23.8]} 33... Rd5 {[%clk 0:00:41.7]} 34. Nf4 {[%clk 0:00:13.2]} 34...
Rd1 {[%clk 0:00:39]} 35. Bb2 {[%clk 0:00:07.6]} 35... Bb3 {[%clk 0:00:38.1]} 36.
Nf3 {[%clk 0:00:02.7]} 36... Nc2 {[%clk 0:00:37.9]} 0-1

[Event "Late-Titled-Tuesday-Blitz-February-13-2024"]
[Site "Chess.com"]
[Date "2024.02.13"]
[Round "11"]
[White "h4parah5"]
[Black "Polish_fighter3000"]
[Result "0-1"]
[WhiteElo "2979"]
[BlackElo "3068"]
[TimeControl "180+1"]
[EndTime "16:05:02 PST"]
[Termination "Polish_fighter3000 won by resignation"]

1. Nf3 {[%clk 0:03:00.9]} 1... Nf6 {[%clk 0:02:59.7]} 2. c4 {[%clk 0:03:00.1]}
2... e6 {[%clk 0:02:58.7]} 3. b3 {[%clk 0:02:59.3]} 3... a6 {[%clk 0:02:53.7]}
4. Nc3 {[%clk 0:02:53.5]} 4... d5 {[%clk 0:02:51.9]} 5. e3 {[%clk 0:02:53.4]}
5... c5 {[%clk 0:02:50.8]} 6. Bb2 {[%clk 0:02:53.3]} 6... Nc6 {[%clk 0:02:41]}
7. cxd5 {[%clk 0:02:53]} 7... exd5 {[%clk 0:02:41.9]} 8. Na4 {[%clk 0:02:46.7]}
8... Bg4 {[%clk 0:02:03.2]} 9. h3 {[%clk 0:02:38.1]} 9... Bh5 {[%clk 0:01:59.8]}
10. Rc1 {[%clk 0:02:35.3]} 10... Nd7 {[%clk 0:01:59.7]} 11. Be2 {[%clk
0:02:18.7]} 11... b5 {[%clk 0:01:58.9]} 12. Nc3 {[%clk 0:02:10.6]} 12... Nb6
{[%clk 0:01:49.7]} 13. O-O {[%clk 0:02:03.1]} 13... Be7 {[%clk 0:01:46.3]} 14.
g4 {[%clk 0:01:47.1]} 14... Bg6 {[%clk 0:01:46.1]} 15. Nxb5 {[%clk 0:01:47.3]}
15... h5 {[%clk 0:01:21.8]} 16. g5 {[%clk 0:01:15]} 16... axb5 {[%clk
0:01:12.7]} 17. Bxb5 {[%clk 0:01:12.8]} 17... O-O {[%clk 0:01:12.9]} 18. Bxc6
{[%clk 0:01:11.5]} 18... Rxa2 {[%clk 0:01:13.5]} 19. Bc3 {[%clk 0:00:46.9]}
19... Qc8 {[%clk 0:00:45.8]} 20. Ne5 {[%clk 0:00:45.9]} 20... Qxh3 {[%clk
0:00:46.4]} 21. Nxg6 {[%clk 0:00:20.2]} 21... fxg6 {[%clk 0:00:47.3]} 22. f4
{[%clk 0:00:20.5]} 22... Qg3+ {[%clk 0:00:39.4]} 23. Kh1 {[%clk 0:00:20]} 23...
d4 {[%clk 0:00:35.7]} 24. Ra1 {[%clk 0:00:15]} 24... Rxa1 {[%clk 0:00:16.4]} 25.
Bxa1 {[%clk 0:00:15.9]} 25... dxe3 {[%clk 0:00:14.9]} 26. dxe3 {[%clk
0:00:16.3]} 26... Qxe3 {[%clk 0:00:14.8]} 27. Qf3 {[%clk 0:00:16.6]} 27... Qe6
{[%clk 0:00:12.8]} 28. Bc3 {[%clk 0:00:14.2]} 28... Bxg5 {[%clk 0:00:12.4]} 29.
Re1 {[%clk 0:00:14.1]} 29... Qf7 {[%clk 0:00:10.4]} 30. Be5 {[%clk 0:00:12.9]}
30... Bxf4 {[%clk 0:00:09.5]} 31. Bxf4 {[%clk 0:00:12.8]} 31... Qxf4 {[%clk
0:00:10.4]} 32. Qxf4 {[%clk 0:00:12.5]} 32... Rxf4 {[%clk 0:00:11.3]} 33. Re8+
{[%clk 0:00:12.3]} 33... Kh7 {[%clk 0:00:11.1]} 34. Rb8 {[%clk 0:00:12.3]} 34...
Rb4 {[%clk 0:00:11.6]} 35. Kg2 {[%clk 0:00:09.1]} 35... Rxb3 {[%clk 0:00:11.7]}
0-1

[Event "Late-Titled-Tuesday-Blitz-February-13-2024"]
[Site "Chess.com"]
[Date "2024.02.13"]
[Round "11"]
[White "dretch"]
[Black "ChessQueen"]
[Result "1-0"]
[WhiteElo "2901"]
[BlackElo "2715"]
[TimeControl "180+1"]
[EndTime "16:05:02 PST"]
[Termination "dretch won by resignation"]

1. d4 {[%clk 0:03:00.9]} 1... Nf6 {[%clk 0:02:59.8]} 2. c4 {[%clk 0:03:00.8]}
2... e6 {[%clk 0:03:00.2]} 3. Nf3 {[%clk 0:03:01.1]} 3... d5 {[%clk 0:02:59.5]}
4. Nc3 {[%clk 0:02:59.1]} 4... dxc4 {[%clk 0:02:59.4]} 5. e4 {[%clk 0:02:56.5]}
5... b5 {[%clk 0:02:58.8]} 6. e5 {[%clk 0:02:52.8]} 6... Nd5 {[%clk 0:02:56.1]}
7. Nxb5 {[%clk 0:02:52.6]} 7... Nb6 {[%clk 0:02:56.5]} 8. Be2 {[%clk 0:02:51.3]}
8... Be7 {[%clk 0:02:56.4]} 9. O-O {[%clk 0:02:48.8]} 9... O-O {[%clk
0:02:55.7]} 10. Qc2 {[%clk 0:02:47.7]} 10... Bb7 {[%clk 0:02:44.1]} 11. Na3
{[%clk 0:02:44.9]} 11... Nc6 {[%clk 0:02:36.9]} 12. Be3 {[%clk 0:02:38.8]} 12...
Nb4 {[%clk 0:02:34.4]} 13. Qc1 {[%clk 0:02:36.4]} 13... Nd3 {[%clk 0:02:34.7]}
14. Qc3 {[%clk 0:02:20.2]} 14... Bb4 {[%clk 0:02:26.7]} 15. Qc2 {[%clk 0:02:19]}
15... Bxa3 {[%clk 0:02:16.5]} 16. bxa3 {[%clk 0:02:18.8]} 16... Be4 {[%clk
0:02:16.7]} 17. Nd2 {[%clk 0:02:12.5]} 17... Bg6 {[%clk 0:02:04.4]} 18. Qc3
{[%clk 0:02:10.7]} 18... c5 {[%clk 0:01:46.2]} 19. dxc5 {[%clk 0:01:46.6]} 19...
Nd5 {[%clk 0:01:38.2]} 20. Qd4 {[%clk 0:01:47]} 20... Nxe3 {[%clk 0:01:30]} 21.
Qxe3 {[%clk 0:01:46.3]} 21... Nxe5 {[%clk 0:01:23.8]} 22. Rfd1 {[%clk
0:01:39.1]} 22... Qc7 {[%clk 0:01:21.7]} 23. Rac1 {[%clk 0:01:26.4]} 23... Nd3
{[%clk 0:01:03.2]} 24. Rxc4 {[%clk 0:01:25.5]} 24... Nb2 {[%clk 0:01:02.5]} 25.
Rdc1 {[%clk 0:01:20.9]} 25... Nxc4 {[%clk 0:01:02.1]} 26. Nxc4 {[%clk
0:01:21.8]} 26... Rfd8 {[%clk 0:01:00.2]} 27. Nd6 {[%clk 0:01:16.9]} 27... Rab8
{[%clk 0:00:53]} 28. h4 {[%clk 0:01:15.6]} 28... h6 {[%clk 0:00:41.9]} 29. h5
{[%clk 0:01:12.9]} 29... Bh7 {[%clk 0:00:42]} 30. Nb5 {[%clk 0:01:08.9]} 30...
Rxb5 {[%clk 0:00:28.8]} 31. Bxb5 {[%clk 0:01:08.7]} 31... Rd5 {[%clk 0:00:29.3]}
32. Be2 {[%clk 0:01:03.7]} 32... Bf5 {[%clk 0:00:18.4]} 33. Bf3 {[%clk
0:00:57.6]} 33... Rd8 {[%clk 0:00:17.8]} 34. c6 {[%clk 0:00:55.6]} 34... e5
{[%clk 0:00:18.3]} 35. g3 {[%clk 0:00:52.7]} 35... f6 {[%clk 0:00:18.4]} 36.
Qb3+ {[%clk 0:00:48.4]} 36... Kf8 {[%clk 0:00:17.6]} 37. Qb7 {[%clk 0:00:48.3]}
37... Rc8 {[%clk 0:00:17.2]} 38. Rc4 {[%clk 0:00:44.2]} 38... Be6 {[%clk
0:00:17.4]} 39. Ra4 {[%clk 0:00:42.3]} 39... a5 {[%clk 0:00:11.5]} 40. Qb5
{[%clk 0:00:35.5]} 40... Rb8 {[%clk 0:00:10.9]} 41. Qc5+ {[%clk 0:00:35.9]}
41... Kg8 {[%clk 0:00:10.4]} 42. Rxa5 {[%clk 0:00:35.9]} 42... Rb1+ {[%clk
0:00:10.5]} 43. Kg2 {[%clk 0:00:35.1]} 43... Qc8 {[%clk 0:00:11.1]} 44. c7
{[%clk 0:00:33.4]} 44... Bh3+ {[%clk 0:00:10.9]} 45. Kh2 {[%clk 0:00:33.5]}
45... Bf1 {[%clk 0:00:10.8]} 46. Ra8 {[%clk 0:00:33.3]} 1-0

[Event "Late-Titled-Tuesday-Blitz-February-13-2024"]
[Site "Chess.com"]
[Date "2024.02.13"]
[Round "11"]
[White "Oleksandr_Bortnyk"]
[Black "GMBenjaminBok"]
[Result "1-0"]
[WhiteElo "3065"]
[BlackElo "2994"]
[TimeControl "180+1"]
[EndTime "16:05:03 PST"]
[Termination "Oleksandr_Bortnyk won by resignation"]

1. e4 {[%clk 0:02:41.8]} 1... e5 {[%clk 0:02:58]} 2. Nf3 {[%clk 0:02:38.4]} 2...
Nc6 {[%clk 0:02:58.5]} 3. Bb5 {[%clk 0:02:38.3]} 3... Nf6 {[%clk 0:02:58.5]} 4.
Nc3 {[%clk 0:02:37.4]} 4... Nd4 {[%clk 0:02:54.4]} 5. Ba4 {[%clk 0:02:35.4]}
5... c6 {[%clk 0:02:32.5]} 6. d3 {[%clk 0:02:34.4]} 6... a5 {[%clk 0:02:23.6]}
7. a3 {[%clk 0:02:27.8]} 7... b5 {[%clk 0:02:16]} 8. Bb3 {[%clk 0:02:27.6]} 8...
Nxb3 {[%clk 0:02:16.4]} 9. cxb3 {[%clk 0:02:28.5]} 9... d6 {[%clk 0:02:15.1]}
10. d4 {[%clk 0:02:28.4]} 10... Qc7 {[%clk 0:02:13.2]} 11. h3 {[%clk 0:02:27.1]}
11... Be7 {[%clk 0:02:13.1]} 12. Bg5 {[%clk 0:02:24.4]} 12... Bb7 {[%clk
0:02:07.3]} 13. O-O {[%clk 0:02:22.8]} 13... b4 {[%clk 0:01:51.3]} 14. axb4
{[%clk 0:02:11.6]} 14... axb4 {[%clk 0:01:52.2]} 15. Rxa8+ {[%clk 0:02:11.6]}
15... Bxa8 {[%clk 0:01:53.1]} 16. dxe5 {[%clk 0:02:07.8]} 16... dxe5 {[%clk
0:01:50.1]} 17. Na4 {[%clk 0:02:02.1]} 17... O-O {[%clk 0:01:16.1]} 18. Qc2
{[%clk 0:01:59.9]} 18... c5 {[%clk 0:01:06.4]} 19. Bxf6 {[%clk 0:01:57.5]} 19...
Bxf6 {[%clk 0:01:06.7]} 20. Nd2 {[%clk 0:01:34.5]} 20... Be7 {[%clk 0:01:00.5]}
21. Nc4 {[%clk 0:01:33.8]} 21... Rb8 {[%clk 0:00:55]} 22. Rd1 {[%clk 0:01:27.5]}
22... g6 {[%clk 0:00:50.3]} 23. Ne3 {[%clk 0:01:26.1]} 23... Rd8 {[%clk
0:00:41.7]} 24. Rxd8+ {[%clk 0:01:20.3]} 24... Qxd8 {[%clk 0:00:42.6]} 25. f3
{[%clk 0:00:32.2]} 25... Qd4 {[%clk 0:00:37.3]} 26. Qf2 {[%clk 0:00:32.5]} 26...
Kg7 {[%clk 0:00:15.7]} 27. Nb6 {[%clk 0:00:30]} 27... Bc6 {[%clk 0:00:12.9]} 28.
Nbc4 {[%clk 0:00:24.2]} 28... Bg5 {[%clk 0:00:11.2]} 29. h4 {[%clk 0:00:15.3]}
29... Bh6 {[%clk 0:00:10.2]} 30. Ng4 {[%clk 0:00:15.1]} 30... Bf4 {[%clk
0:00:06.7]} 31. Qxd4 {[%clk 0:00:11.2]} 31... exd4 {[%clk 0:00:07.6]} 32. Kf2
{[%clk 0:00:08.8]} 32... h5 {[%clk 0:00:06.4]} 33. Nge5 {[%clk 0:00:09]} 33...
Bd7 {[%clk 0:00:06.6]} 34. Nxd7 {[%clk 0:00:09.2]} 1-0